bitfinex/quotes_ETHUSD_20240910
["timestamp","ask_amount","ask_price","bid_price","bid_amount"]
[1726001515815,9.73427247,2390.1,2389.8,0.0294637]
[1726001516021,8.12181808,2390.0,2389.8,0.0294637]
[1726001516220,3.10463551,2389.9,2389.8,0.0294637]
[1726001516442,3.65463551,2389.9,2389.8,0.0294637]
[1726001517022,7.83890551,2389.9,2389.8,0.0294637]
[1726001518247,12.02317551,2389.9,2389.8,0.0294637]
[1726001518446,14.37707551,2389.9,2389.8,0.0294637]
[1726001520233,7.83890551,2389.9,2389.8,0.0294637]
[1726001520918,3.65463551,2389.9,2389.8,0.0294637]
[1726001522030,3.65463551,2389.9,2389.8,2.3409637]
[1726001523048,4.18355,2390.4,2389.8,2.3409637]
[1726001523049,0.10462148,2390.0,2389.8,2.3409637]
[1726001523232,0.10461461,2390.3,2389.8,2.57506007]
[1726001523667,0.10461461,2390.3,2389.8,2.3409637]
[1726001523872,0.10461035,2390.5,2389.8,2.3409637]
[1726001524931,0.10461035,2390.5,2389.9,0.08367827]
[1726001525139,0.10461035,2390.5,2389.9,2.3395]
[1726001525554,0.10461035,2390.5,2390.1,2.3395]
[1726001526224,7.49,2390.6,2390.1,2.42317179]
[1726001526875,0.10458973,2390.9,2390.1,2.42317179]
[1726001527454,0.55,2390.8,2390.1,2.42317179]
[1726001527766,0.10458412,2390.7,2390.3,2.3395]
[1726001527969,0.55,2390.6,2390.3,2.3395]
[1726001528174,0.10459276,2390.5,2390.3,2.3395]
[1726001528470,0.55,2390.4,2389.9,2.3395]
[1726001528631,0.55,2390.4,2389.8,0.0294637]
[1726001528632,0.10460701,2390.3,2390.1,2.3395]
[1726001528831,0.55,2390.2,2390.1,2.3395]
[1726001529353,0.10460043,2390.6,2390.1,2.3395]
[1726001529539,0.55,2390.5,2390.1,2.57345]
[1726001530987,0.55,2390.7,2390.1,2.57345]
[1726001531192,0.104587,2390.6,2390.1,2.57345]
[1726001531357,0.55,2390.5,2390.3,2.3395]
[1726001532491,0.55,2390.7,2390.3,2.3395]
[1726001532677,0.10458695,2390.6,2390.3,2.3395]
[1726001532877,0.55,2390.5,2390.3,2.3395]
[1726001533590,0.55,2390.5,2390.3,2.57345]
[1726001533887,0.55,2390.7,2390.3,2.57345]
[1726001534096,0.10458289,2390.6,2390.3,2.57345]
[1726001534393,0.10458289,2390.6,2390.3,2.3395]
[1726001542541,0.10458289,2390.6,2389.8,0.11313326]
[1726001542542,4.18383,2390.2,2389.8,0.0294637]
[1726001542846,0.10461875,2390.1,2389.8,0.0294637]
[1726001543141,3.65461875,2390.1,2389.8,0.0294637]
[1726001543702,0.65461875,2390.1,2389.8,0.0294637]
[1726001547075,4.83855875,2390.1,2389.8,0.0294637]
[1726001547280,13.57406808,2390.0,2389.8,0.0294637]
[1726001547451,0.65463371,2389.9,2389.8,0.0294637]
[1726001547649,7.83890371,2389.9,2389.8,0.0294637]
[1726001548278,12.02317371,2389.9,2389.8,0.0294637]
[1726001549283,13.33353929,2389.9,2389.8,0.0294637]
[1726001549857,12.02317371,2389.9,2389.8,0.0294637]
[1726001552579,7.83890371,2389.9,2389.8,0.0294637]
[1726001553068,3.10463371,2389.9,2389.8,0.0294637]
[1726001553618,7.28890371,2389.9,2389.8,0.0294637]
[1726001554604,7.83890371,2389.9,2389.8,0.0294637]
[1726001560070,14.38827371,2389.9,2389.8,0.0294637]
[1726001561230,12.02317371,2389.9,2389.8,0.0294637]
[1726001561527,7.83890371,2389.9,2389.8,0.0294637]
[1726001562599,12.02317371,2389.9,2389.8,0.0294637]
[1726001563221,17.51780929,2389.9,2389.8,0.0294637]
[1726001563383,9.14926929,2389.9,2389.8,0.0294637]
[1726001563583,0.10463371,2389.9,2389.8,0.0294637]
[1726001563887,1.74715411,2390.3,2389.7,0.0367717]
[1726001563888,4.1842,2390.0,2389.7,0.0367717]
[1726001564090,0.10462469,2389.9,2389.7,0.0367717]
[1726001564697,4.18445,2389.8,2389.7,0.0367717]
[1726001564899,4.73445,2389.8,2389.7,0.0367717]
[1726001565099,7.73445,2389.8,2389.7,0.0367717]
[1726001565327,12.02353328,2389.8,2389.7,0.0367717]
[1726001565501,7.83908328,2389.8,2389.7,0.0367717]
[1726001567030,12.02353328,2389.8,2389.7,0.0367717]
[1726001567917,7.83908328,2389.8,2389.7,0.0367717]
[1726001572469,12.02353328,2389.8,2389.7,0.0367717]
[1726001572672,13.33389886,2389.8,2389.7,0.0367717]
[1726001574559,12.02353328,2389.8,2389.7,0.0367717]
[1726001575188,7.83908328,2389.8,2389.7,0.0367717]
[1726001579577,3.65463328,2389.8,2389.7,0.0367717]
[1726001580283,0.65463328,2389.8,2389.7,2.3939717]
[1726001580435,0.10461545,2390.0,2389.7,2.63336887]
[1726001581694,0.10461545,2390.0,2389.7,2.3939717]
[1726001582746,0.55,2389.9,2389.7,2.3939717]
[1726001584626,0.10461679,2389.8,2389.7,0.0367717]
[1726001584783,0.65461679,2389.8,2389.7,0.0367717]
[1726001585120,3.65461679,2389.8,2389.7,0.0367717]
[1726001585826,7.83906679,2389.8,2389.7,0.0367717]
[1726001586008,9.14943237,2389.8,2389.7,0.0367717]
[1726001587413,7.83906679,2389.8,2389.7,0.0367717]
[1726001587614,5.4017709,2389.8,2389.7,0.0367717]
[1726001587794,4.97182648,2389.8,2389.7,0.0367717]
[1726001588338,5.4017709,2389.8,2389.7,0.0367717]
[1726001589586,4.97271172,2389.8,2389.7,0.0367717]
[1726001589834,0.55,2389.8,2389.7,2.3399717]
[1726001590906,0.55,2389.8,2389.7,2.57396887]
[1726001591203,0.55,2389.9,2389.7,2.57396887]
[1726001593006,4.31809493,2390.1,2389.7,2.57396887]
[1726001593007,0.55,2390.0,2389.7,2.57396887]
[1726001593504,1.97270432,2390.0,2389.7,2.57396887]
[1726001594321,0.55,2390.0,2389.7,2.57396887]
[1726001594704,0.55,2390.0,2389.9,2.4112]
[1726001598055,4.31809493,2390.1,2389.9,2.4112]
[1726001598345,4.42269878,2390.2,2389.9,2.4112]
[1726001598548,0.55,2390.1,2389.9,2.4112]
[1726001598737,0.55,2390.1,2389.9,2.68173686]
[1726001600359,0.55,2390.1,2389.9,2.4112]
[1726001603313,0.55,2390.1,2389.7,2.4594717]
[1726001603651,0.10460829,2390.0,2389.7,0.0367717]
[1726001604561,0.55,2389.9,2389.7,0.0367717]
[1726001604769,0.10462327,2389.8,2389.7,0.0367717]
[1726001604928,7.10007327,2389.8,2389.7,0.0367717]
[1726001605265,8.84722738,2389.8,2389.7,0.0367717]
[1726001606587,8.41726276,2389.8,2389.7,0.0367717]
[1726001606885,7.10007327,2389.8,2389.7,0.0367717]
[1726001607063,8.84722738,2389.8,2389.7,0.0367717]
[1726001607787,7.10007327,2389.8,2389.7,0.0367717]
[1726001608561,8.84722738,2389.8,2389.7,0.0367717]
[1726001609591,7.10007327,2389.8,2389.7,0.0367717]
[1726001610012,8.41719454,2389.8,2389.7,0.0367717]
[1726001610151,7.10007327,2389.8,2389.7,0.0367717]
[1726001610353,8.41719626,2389.8,2389.7,0.0367717]
[1726001611092,11.84722738,2389.8,2389.7,0.0367717]
[1726001612150,16.4797248,2389.8,2389.7,0.0367717]
[1726001614895,16.47961921,2389.8,2389.7,0.0367717]
[1726001617381,18.58357327,2389.8,2389.7,0.0367717]
[1726001617781,21.2176884,2389.8,2389.7,0.0367717]
[1726001618014,18.58357327,2389.8,2389.7,0.0367717]
[1726001618212,21.2176884,2389.8,2389.7,0.0367717]
[1726001618519,18.58357327,2389.8,2389.7,0.0367717]
[1726001622123,20.40366263,2389.8,2389.7,0.0367717]
[1726001622928,15.66921263,2389.8,2389.7,0.0367717]
[1726001623144,17.86276849,2389.8,2389.7,0.0367717]
[1726001623481,17.42392675,2389.8,2389.7,0.0367717]
[1726001623675,15.66921263,2389.8,2389.7,0.0367717]
[1726001623921,13.23947547,2389.8,2389.7,0.0367717]
[1726001624232,11.48476263,2389.8,2389.7,0.0367717]
[1726001624393,12.03476263,2389.8,2389.7,0.0367717]
[1726001624794,13.78943656,2389.8,2389.7,0.0367717]
[1726001624979,12.03476263,2389.8,2389.7,0.0367717]
[1726001625197,16.21921263,2389.8,2389.7,0.0367717]
[1726001625546,14.22831849,2389.8,2389.7,0.0367717]
[1726001625896,18.41276849,2389.8,2389.7,0.0367717]
[1726001626397,18.41257403,2389.8,2389.7,0.0367717]
[1726001626592,16.21921263,2389.8,2389.7,0.0367717]
[1726001627895,18.41251121,2389.8,2389.7,0.0367717]
[1726001628748,16.21921263,2389.8,2389.7,0.0367717]
[1726001629396,20.40366263,2389.8,2389.7,0.0367717]
[1726001629839,16.21921263,2389.8,2389.7,0.0367717]
[1726001630637,18.63307454,2389.8,2389.7,0.0367717]
[1726001630841,22.81750993,2389.8,2389.7,0.0367717]
[1726001631042,20.62449636,2389.8,2389.7,0.0367717]
[1726001632309,24.80894636,2389.8,2389.7,0.0367717]
[1726001632951,20.62449636,2389.8,2389.7,0.0367717]
[1726001633641,29.22094636,2389.8,2389.7,0.0367717]
[1726001634217,25.03649636,2389.8,2389.7,0.0367717]
[1726001634531,29.22094636,2389.8,2389.7,0.0367717]
[1726001640269,27.66555355,2389.8,2389.7,0.0367717]
[1726001640465,31.85000355,2389.8,2389.7,0.0367717]
[1726001640786,29.22094636,2389.8,2389.7,0.0367717]
[1726001641667,25.03649636,2389.8,2389.7,0.0367717]
[1726001642777,20.62449636,2389.8,2389.7,0.0367717]
[1726001643057,23.25376487,2389.8,2389.7,0.0367717]
[1726001644462,23.25396911,2389.8,2389.7,0.0367717]
[1726001645452,20.62449636,2389.8,2389.7,0.0367717]
[1726001647815,18.02806263,2389.8,2389.7,0.0367717]
[1726001648268,13.84361263,2389.8,2389.7,0.0367717]
[1726001648471,9.02352327,2389.8,2389.7,0.0367717]
[1726001648673,10.84361263,2389.8,2389.7,0.0367717]
[1726001649759,13.84361263,2389.8,2389.7,0.0367717]
[1726001652316,16.47567533,2389.8,2389.7,0.0367717]
[1726001652465,13.84361263,2389.8,2389.7,0.0367717]
[1726001653205,16.47567533,2389.8,2389.7,0.0367717]
[1726001653405,13.84361263,2389.8,2389.7,0.0367717]
[1726001655581,16.47567533,2389.8,2389.7,0.0367717]
[1726001659504,16.479285,2389.8,2389.7,0.0367717]
[1726001660734,12.02352327,2389.8,2389.7,0.0367717]
[1726001660935,13.84361263,2389.8,2389.7,0.0367717]
[1726001662018,16.47967757,2389.8,2389.7,0.0367717]
[1726001662533,13.84361263,2389.8,2389.7,0.0367717]
[1726001664706,20.28096263,2389.8,2389.7,0.0367717]
[1726001665405,20.28096263,2389.8,2389.2,0.0265797]
[1726001665406,8.37064,2389.3,2389.2,0.0265797]
[1726001665608,20.01265367,2389.3,2389.2,0.0265797]
[1726001665841,17.37604936,2389.3,2389.2,0.0265797]
[1726001666411,13.19072936,2389.3,2389.2,0.0265797]
[1726001666855,13.19072936,2389.3,2389.2,2.2945797]
[1726001667038,15.82728587,2389.3,2389.2,2.2945797]
[1726001667209,13.19072936,2389.3,2389.2,0.0265797]
[1726001667609,13.74072936,2389.3,2389.2,0.0265797]
[1726001678022,16.37707182,2389.3,2389.2,0.0265797]
[1726001678535,13.74072936,2389.3,2389.2,0.0265797]
[1726001678898,16.37707182,2389.3,2389.2,0.0265797]
[1726001679114,16.377082,2389.3,2389.2,0.0265797]
[1726001680301,20.562402,2389.3,2389.2,0.0265797]
[1726001682435,16.377082,2389.3,2389.2,0.0265797]
[1726001684214,16.37653736,2389.3,2389.2,0.0265797]
[1726001685098,13.74072936,2389.3,2389.2,0.0265797]
[1726001687247,17.92604936,2389.3,2389.2,0.0265797]
[1726001687534,28.87946936,2389.3,2389.2,0.0265797]
[1726001687749,31.9545787,2389.3,2389.2,0.0265797]
[1726001688100,31.95484791,2389.3,2389.2,0.0265797]
[1726001688410,28.87946936,2389.3,2389.2,0.0265797]
[1726001688630,31.95429342,2389.3,2389.2,0.0265797]
[1726001689314,28.87946936,2389.3,2389.2,0.0265797]
[1726001689509,29.10982664,2389.3,2389.2,0.0265797]
[1726001689839,32.18413126,2389.3,2389.2,0.0265797]
[1726001692313,8.37204,2388.9,2388.8,0.0265797]
[1726001692554,16.04191174,2388.9,2388.8,0.0265797]
[1726001694250,16.04163948,2388.9,2388.8,0.0265797]
[1726001696133,16.04163948,2388.9,2388.8,2.3847797]
[1726001696333,15.60230555,2388.9,2388.8,2.3847797]
[1726001696665,13.84680267,2388.9,2388.8,0.0265797]
[1726001696832,18.03282267,2388.9,2388.8,0.0265797]
[1726001697260,20.22718343,2388.9,2388.8,0.0265797]
[1726001697419,18.03282267,2388.9,2388.8,0.0265797]
[1726001698440,20.2271056,2388.9,2388.8,0.0265797]
[1726001698624,18.03282267,2388.9,2388.8,0.0265797]
[1726001699325,20.22706879,2388.9,2388.8,0.0265797]
[1726001700550,16.04104879,2388.9,2388.8,0.0265797]
[1726001700859,11.4161034,2388.9,2388.8,0.0265797]
[1726001701203,6.6800834,2388.9,2388.8,0.0265797]
[1726001701489,6.6800834,2388.9,2388.8,2.5261797]
[1726001701490,6.24132021,2388.9,2388.8,2.5261797]
[1726001701654,1.42121764,2389.0,2388.8,2.5261797]
[1726001701854,1.31655754,2388.9,2388.8,2.5261797]
[1726001702456,1.42121307,2389.1,2388.8,2.77879767]
[1726001702739,1.31655754,2389.1,2388.8,2.77879767]
[1726001702959,1.42121307,2389.2,2388.8,2.77879767]
[1726001703285,1.42121307,2389.2,2388.9,2.55587977]
[1726001703787,4.42121307,2389.2,2388.9,2.55587977]
[1726001704491,1.42121307,2389.2,2388.9,2.55587977]
[1726001704800,1.31655754,2389.4,2388.9,2.55587977]
[1726001704952,1.31655754,2389.4,2389.1,2.3986]
[1726001705789,4.31655754,2389.4,2389.1,2.3986]
[1726001705991,0.55,2389.3,2389.1,2.3986]
[1726001707770,0.104634,2389.2,2389.1,2.3986]
[1726001707968,3.7912809,2389.2,2389.1,2.3986]
[1726001708367,3.7912809,2389.2,2388.8,0.0265797]
[1726001708573,1.82008936,2388.9,2388.8,0.0265797]
[1726001708787,15.05212068,2388.9,2388.8,0.0265797]
[1726001708991,16.04125924,2388.9,2388.8,0.0265797]
[1726001709192,13.84679995,2388.9,2388.8,0.0265797]
[1726001710999,16.04240565,2388.9,2388.8,0.0265797]
[1726001711563,13.84679995,2388.9,2388.8,0.0265797]
[1726001711772,16.042578,2388.9,2388.8,0.0265797]
[1726001712256,18.16827801,2388.9,2388.8,0.0265797]
[1726001712458,1.25,2388.5,2388.3,0.0265797]
[1726001712662,1.25,2388.5,2387.8,0.5411822]
[1726001712663,19.29824,2387.9,2387.8,0.02738388]
[1726001712860,10.69846,2387.9,2387.8,0.02738388]
[1726001713163,11.37556,2387.9,2387.8,0.02738388]
[1726001713357,13.57034903,2387.9,2387.8,0.02738388]
[1726001713678,14.01169164,2387.9,2387.8,0.02738388]
[1726001713900,14.56169164,2387.9,2387.8,0.02738388]
[1726001714371,11.92556,2387.9,2387.8,0.02738388]
[1726001715526,14.11720667,2387.9,2387.8,0.02738388]
[1726001716280,16.11334,2387.9,2387.8,0.02738388]
[1726001718015,18.30352788,2387.9,2387.8,0.02738388]
[1726001719015,16.11334,2387.9,2387.8,0.02738388]
[1726001719319,17.8644993,2387.9,2387.8,0.02738388]
[1726001720404,16.11334,2387.9,2387.8,0.02738388]
[1726001720919,17.8644993,2387.9,2387.8,0.02738388]
[1726001721328,13.6767193,2387.9,2387.8,0.02738388]
[1726001721640,12.25013602,2387.9,2387.8,0.02738388]
[1726001722330,16.43791602,2387.9,2387.8,0.02738388]
[1726001722627,16.8753034,2387.9,2387.8,0.02738388]
[1726001722927,17.4253034,2387.9,2387.8,0.02738388]
[1726001723416,17.42461247,2387.9,2387.8,0.02738388]
[1726001724612,17.18262184,2387.9,2387.8,0.02738388]
[1726001724781,15.87134937,2387.9,2387.8,0.02738388]
[1726001726331,20.05912937,2387.9,2387.8,0.02738388]
[1726001726625,15.87134937,2387.9,2387.8,0.02738388]
[1726001727052,16.74525862,2387.9,2387.8,0.02738388]
[1726001727348,15.87134937,2387.9,2387.8,0.02738388]
[1726001727929,16.74525862,2387.9,2387.8,0.02738388]
[1726001728638,20.93303862,2387.9,2387.8,0.02738388]
[1726001728948,16.74525862,2387.9,2387.8,0.02738388]
[1726001730262,15.87134937,2387.9,2387.8,0.02738388]
[1726001733819,16.74525862,2387.9,2387.8,0.02738388]
[1726001734243,15.87134937,2387.9,2387.8,0.02738388]
[1726001740172,13.74852351,2387.9,2387.8,0.02738388]
[1726001743485,14.62243276,2387.9,2387.8,0.02738388]
[1726001743691,13.74852351,2387.9,2387.8,0.02738388]
[1726001744375,13.96991647,2387.9,2387.8,0.02738388]
[1726001744579,14.84382572,2387.9,2387.8,0.02738388]
[1726001744814,19.03160572,2387.9,2387.8,0.02738388]
[1726001746411,14.84382572,2387.9,2387.8,0.02738388]
[1726001746565,19.03160572,2387.9,2387.8,0.02738388]
[1726001747663,14.84382572,2387.9,2387.8,0.02738388]
[1726001747863,19.03160572,2387.9,2387.8,0.02738388]
[1726001748075,14.84382572,2387.9,2387.8,0.02738388]
[1726001748307,19.03160572,2387.9,2387.8,0.02738388]
[1726001750702,19.46896894,2387.9,2387.8,0.02738388]
[1726001751550,13.96991647,2387.9,2387.8,0.02738388]
[1726001751898,18.15769647,2387.9,2387.8,0.02738388]
[1726001752196,13.45860483,2387.9,2387.8,2.45038388]
[1726001752449,12.90860483,2387.9,2387.8,2.45038388]
[1726001752736,11.59695296,2387.9,2387.8,0.02738388]
[1726001752899,13.34811226,2387.9,2387.8,0.02738388]
[1726001753245,17.53589226,2387.9,2387.8,0.02738388]
[1726001753565,13.78290312,2387.9,2387.8,0.02738388]
[1726001753700,14.33290312,2387.9,2387.8,0.02738388]
[1726001754519,12.14695296,2387.9,2387.8,0.02738388]
[1726001755552,14.77009316,2387.9,2387.8,0.02738388]
[1726001756714,14.78014525,2387.9,2387.8,0.02738388]
[1726001757405,12.14695296,2387.9,2387.8,0.02738388]
[1726001758413,16.33473296,2387.9,2387.8,0.02738388]
[1726001758618,12.14695296,2387.9,2387.8,0.02738388]
[1726001760125,16.33473296,2387.9,2387.8,0.02738388]
[1726001760324,21.68066602,2387.9,2387.8,0.02738388]
[1726001760653,18.05179789,2387.9,2387.8,0.02738388]
[1726001760847,21.69107598,2387.9,2387.8,0.02738388]
[1726001761050,17.50329598,2387.9,2387.8,0.02738388]
[1726001761711,12.14695296,2387.9,2387.8,0.02738388]
[1726001762228,13.96991647,2387.9,2387.8,0.02738388]
[1726001762705,17.05077879,2387.9,2387.8,0.02738388]
[1726001763851,17.05052784,2387.9,2387.8,0.02738388]
[1726001764053,17.0504565,2387.9,2387.8,0.02738388]
[1726001764261,17.60919456,2387.9,2387.8,0.02738388]
[1726001764502,23.51375172,2387.9,2387.8,0.02738388]
[1726001764705,19.32597172,2387.9,2387.8,0.02738388]
[1726001764998,19.32535603,2387.9,2387.8,0.02738388]
[1726001765156,15.68669363,2387.9,2387.8,0.02738388]
[1726001766170,9.78213647,2387.9,2387.8,0.02738388]
[1726001766496,12.64239722,2387.9,2387.8,0.02738388]
[1726001766711,16.83017722,2387.9,2387.8,0.02738388]
[1726001767057,13.74852351,2387.9,2387.8,0.02738388]
[1726001767692,17.38703396,2387.9,2387.8,0.02738388]
[1726001768306,19.10452425,2387.9,2387.8,0.02738388]
[1726001769923,19.10548987,2387.9,2387.8,0.02738388]
[1726001770094,13.74852351,2387.9,2387.8,0.02738388]
[1726001771294,16.83057994,2387.9,2387.8,0.02738388]
[1726001771478,13.74852351,2387.9,2387.8,0.02738388]
[1726001772689,16.83078967,2387.9,2387.8,0.02738388]
[1726001773115,13.74852351,2387.9,2387.8,0.02738388]
[1726001773422,16.83076789,2387.9,2387.8,0.02738388]
[1726001773626,16.83076799,2387.9,2387.8,0.02738388]
[1726001773803,13.74852351,2387.9,2387.8,0.02738388]
[1726001775023,16.83071006,2387.9,2387.8,0.02738388]
[1726001775494,13.74852351,2387.9,2387.8,0.02738388]
[1726001777802,16.83069775,2387.9,2387.8,0.02738388]
[1726001778142,16.83072078,2387.9,2387.8,0.02738388]
[1726001779302,16.83071168,2387.9,2387.8,0.02738388]
[1726001779514,11.92556,2387.9,2387.8,0.02738388]
[1726001779727,13.74852351,2387.9,2387.8,0.02738388]
[1726001782117,19.10715647,2387.9,2387.8,0.02738388]
[1726001782920,7.73778,2387.9,2387.8,2.44798388]
[1726001783276,9.66544563,2387.9,2387.8,2.44798388]
[1726001784546,7.84248212,2387.9,2387.8,2.44798388]
[1726001784754,9.66544563,2387.9,2387.8,2.44798388]
[1726001789538,13.85322563,2387.9,2387.8,0.02738388]
[1726001789730,18.1405624,2387.9,2387.8,0.02738388]
[1726001789932,19.85830012,2387.9,2387.8,0.02738388]
[1726001790518,19.21185969,2387.9,2387.8,0.02738388]
[1726001791145,15.57096335,2387.9,2387.8,0.02738388]
[1726001791346,17.49412197,2387.9,2387.8,0.02738388]
[1726001791574,15.57096335,2387.9,2387.8,0.02738388]
[1726001791729,19.21185969,2387.9,2387.8,0.02738388]
[1726001792670,23.39963969,2387.9,2387.8,0.02738388]
[1726001792868,31.35519011,2387.9,2387.8,0.02738388]
[1726001793022,10.8291,2387.4,2387.3,0.0265797]
[1726001793226,16.20206351,2387.4,2387.3,0.0265797]
[1726001793669,19.28252946,2387.4,2387.3,0.0265797]
[1726001793824,16.20206351,2387.4,2387.3,0.0265797]
[1726001794682,16.20206351,2387.4,2386.8,0.0265797]
[1726001794683,10.81966,2386.9,2386.8,0.0265797]
[1726001794832,18.08814647,2386.9,2386.8,0.0265797]
[1726001795026,15.55919,2386.9,2386.8,0.0265797]
[1726001795339,17.44521422,2386.9,2386.8,0.0265797]
[1726001795540,14.36966,2386.9,2386.8,0.0265797]
[1726001795756,13.75202351,2386.9,2386.8,0.0265797]
[1726001796269,16.38812401,2386.9,2386.8,0.0265797]
[1726001798288,11.92906,2386.9,2386.8,0.0265797]
[1726001798487,15.94570383,2386.9,2386.8,0.0265797]
[1726001798790,13.75202351,2386.9,2386.8,0.0265797]
[1726001799598,14.39846394,2386.9,2386.8,0.0265797]
[1726001800380,16.59074096,2386.9,2386.8,0.0265797]
[1726001802360,16.89156394,2386.9,2386.8,0.0265797]
[1726001802750,19.52397395,2386.9,2386.8,0.0265797]
[1726001802960,16.89156394,2386.9,2386.8,0.0265797]
[1726001803689,21.08109394,2386.9,2386.8,0.0265797]
[1726001804259,23.709605,2386.9,2386.8,0.0265797]
[1726001804572,19.520075,2386.9,2386.8,0.0265797]
[1726001804776,23.7087844,2386.9,2386.8,0.0265797]
[1726001805089,16.89156394,2386.9,2386.8,0.0265797]
[1726001805257,21.56175437,2386.9,2386.8,0.0265797]
[1726001805460,24.18944483,2386.9,2386.8,0.0265797]
[1726001806066,21.56175437,2386.9,2386.8,0.0265797]
[1726001806263,24.18866526,2386.9,2386.8,0.0265797]
[1726001807505,23.92820788,2386.9,2386.8,0.0265797]
[1726001808006,21.30129699,2386.9,2386.8,0.0265797]
[1726001808207,23.92680673,2386.9,2386.8,0.0265797]
[1726001808506,21.30129699,2386.9,2386.8,0.0265797]
[1726001808814,21.30129699,2386.9,2385.9,0.0265797]
[1726001808816,14.86019,2386.5,2385.9,0.0265797]
[1726001809036,21.87090909,2386.5,2385.9,0.0265797]
[1726001809868,22.42090909,2386.5,2385.9,0.0265797]
[1726001810288,20.23315351,2386.5,2385.9,0.0265797]
[1726001810494,21.98239973,2386.5,2385.9,0.0265797]
[1726001811579,19.69289973,2386.5,2385.9,0.0265797]
[1726001811773,17.94365351,2386.5,2385.9,0.0265797]
[1726001811973,15.50266973,2386.5,2385.9,0.0265797]
[1726001812717,15.94117909,2386.5,2385.9,0.0265797]
[1726001812898,15.50192873,2386.5,2385.9,0.0265797]
[1726001813977,15.50192873,2386.5,2386.2,2.3679]
[1726001814180,13.75342351,2386.5,2386.2,2.3679]
[1726001814508,15.06431523,2386.5,2386.2,2.3679]
[1726001816519,13.75342351,2386.5,2386.2,2.3679]
[1726001816703,14.6272119,2386.5,2386.2,2.3679]
[1726001819817,9.56319351,2386.5,2386.2,2.3679]
[1726001821191,13.75342351,2386.5,2386.2,2.3679]
[1726001821728,9.56319351,2386.5,2386.2,2.3679]
[1726001826096,10.17649144,2386.5,2386.2,2.3679]
[1726001826298,11.05027983,2386.5,2386.2,2.3679]
[1726001826496,10.17649144,2386.5,2386.2,2.3679]
[1726001827214,23.6694885,2386.5,2385.9,0.0265797]
[1726001827402,21.00255144,2386.5,2385.9,0.0265797]
[1726001827895,23.1885481,2386.5,2385.9,0.0265797]
[1726001829316,12.57861,2385.0,2384.9,0.0265797]
[1726001829552,14.29910564,2385.0,2384.9,0.0265797]
[1726001829705,12.55060351,2385.0,2384.9,0.0265797]
[1726001829908,21.92910117,2385.0,2384.9,0.0265797]
[1726001830340,21.92910117,2385.0,2384.3,0.01]
[1726001830341,12.58071,2384.6,2384.5,0.0210136]
[1726001830509,20.123731,2384.6,2384.5,0.0210136]
[1726001830717,9.69519749,2384.6,2384.5,0.0210136]
[1726001831013,14.08219383,2384.6,2384.5,0.0210136]
[1726001831220,8.06566032,2384.6,2384.5,0.0210136]
[1726001831510,9.56653351,2384.6,2384.5,0.0210136]
[1726001832247,15.89771016,2384.6,2384.5,0.0210136]
[1726001834548,7.51057016,2384.6,2384.5,0.0210136]
[1726001834731,3.55,2384.6,2384.5,0.0210136]
[1726001835240,3.0,2384.6,2384.5,0.0210136]
[1726001835423,7.29834576,2384.7,2384.5,0.0210136]
[1726001836423,0.55,2384.6,2384.5,0.0210136]
[1726001836831,4.74357,2384.6,2384.5,0.0210136]
[1726001837050,7.74357,2384.6,2384.5,0.0210136]
[1726001837221,7.84841575,2384.6,2384.5,0.0210136]
[1726001838230,7.74357,2384.6,2384.5,0.0210136]
[1726001841047,3.55,2384.6,2384.5,0.0210136]
[1726001841624,3.0,2384.6,2384.5,0.0210136]
[1726001841829,8.38599,2385.0,2384.5,0.0210136]
[1726001842070,3.10483471,2384.9,2384.5,0.0210136]
[1726001843076,0.55,2384.8,2384.5,0.0210136]
[1726001843457,0.55,2384.8,2384.6,2.4386]
[1726001843655,0.10483406,2385.1,2384.6,2.68456136]
[1726001843970,7.49,2385.2,2384.7,0.0838578]
[1726001844133,7.49,2385.2,2384.7,0.3544153]
[1726001844330,7.49,2385.2,2384.9,2.4386]
[1726001844532,7.49,2385.2,2385.1,2.4386]
[1726001844736,4.19168,2385.7,2385.1,2.4386]
[1726001844937,4.29648,2385.7,2385.2,0.33608479]
[1726001845565,5.44644021,2385.8,2385.3,0.08384001]
[1726001845738,1.59066478,2385.8,2385.3,0.08384001]
[1726001846161,0.10479473,2385.8,2385.4,2.434]
[1726001846375,0.104792,2385.9,2385.5,0.251784]
[1726001846683,4.296092,2385.9,2385.5,0.251784]
[1726001847368,4.296092,2385.9,2385.4,2.434]
[1726001847671,3.0,2385.8,2385.5,0.0838337]
[1726001847870,3.0,2386.0,2385.5,0.0838337]
[1726001848075,3.0,2386.0,2385.5,0.33561707]
[1726001848932,0.55,2385.9,2385.5,0.33561707]
[1726001849133,0.55,2385.9,2385.5,0.25178337]
[1726001849577,0.55,2385.9,2385.5,0.3356108]
[1726001850261,0.1047843,2385.8,2385.4,2.434]
[1726001850433,0.55,2385.7,2385.4,2.434]
[1726001861495,0.55,2385.7,2385.5,0.08383409]
[1726001861905,3.55,2385.7,2385.5,0.08383409]
[1726001862062,0.55,2385.7,2385.5,0.08383409]
[1726001862257,0.55,2385.9,2385.5,0.08383409]
[1726001867297,0.55,2385.9,2385.6,2.294]
[1726001867482,0.55,2385.9,2385.7,0.0838237]
[1726001867691,3.97686995,2386.2,2385.7,0.0838237]
[1726001867692,0.55,2386.1,2385.7,0.0838237]
[1726001867889,19.83186016,2386.3,2385.7,0.0838237]
[1726001867890,7.49,2386.3,2385.7,0.0838237]
[1726001868222,7.49,2386.3,2385.8,2.294]
[1726001868430,0.10476787,2386.2,2385.8,2.294]
[1726001869286,7.90342549,2386.2,2385.8,2.294]
[1726001869525,0.55,2386.1,2385.8,2.294]
[1726001869919,0.10478058,2386.0,2385.5,2.3573]
[1726001870095,4.19148,2385.8,2385.2,2.3573]
[1726001870286,3.10480092,2385.7,2385.2,2.3573]
[1726001870589,0.55,2385.6,2385.2,2.3573]
[1726001873993,0.55,2385.6,2384.8,2.2816]
[1726001873994,6.32987118,2385.5,2384.8,2.2816]
[1726001874343,6.32987118,2385.5,2384.5,0.0210136]
[1726001874344,8.38559,2385.1,2384.6,2.2816]
[1726001874507,0.10482878,2385.0,2384.6,2.2816]
[1726001874696,0.55,2384.9,2384.6,2.2816]
[1726001876290,4.84787976,2384.9,2384.5,0.0210136]
[1726001876638,3.0,2384.8,2384.5,0.0210136]
[1726001876838,0.55,2384.7,2384.5,0.0210136]
[1726001880355,0.55,2384.7,2384.3,1.6355136]
[1726001881269,0.55,2384.7,2384.4,0.08386879]
[1726001881763,0.55,2384.9,2384.4,0.08386879]
[1726001882066,0.55,2384.9,2384.3,1.6355136]
[1726001882358,0.55,2384.9,2384.4,0.08386494]
[1726001884265,4.74308,2384.9,2384.3,1.6355136]
[1726001884421,3.0,2384.8,2384.3,1.6355136]
[1726001884761,0.55,2384.7,2384.3,1.6355136]